fUST/lending_fUST_20250618
["ID","MTS","AMOUNT","RATE_DAILY","PERIOD"]
[366323695,1750187446713,-768.08,0.00023123,6]
[366323696,1750187446723,-1166.0,0.00023123,6]
[366323697,1750187446734,-460.0,0.00023123,6]
[366323698,1750187446744,-527.07,0.00023123,6]
[366323699,1750187446754,-504.37,0.00023123,6]
[366323700,1750187446764,-341.36,0.00023123,6]
[366323701,1750187446774,-460.0,0.00023123,6]
[366323702,1750187446785,-460.0,0.00023123,6]
[366323703,1750187446796,-515.05,0.00023123,6]
[366323704,1750187446806,-491.62,0.00023123,6]
[366323705,1750187446819,-2040.38,0.00023123,6]
[366323706,1750187446830,-460.0,0.00023123,6]
[366323707,1750187446840,-460.0,0.00023123,6]
[366323708,1750187446850,-1128.58,0.00023123,6]
[366323709,1750187446861,-689.88,0.00023123,6]
[366323710,1750187446871,-460.0,0.00023123,6]
[366323711,1750187446881,-462.05,0.00023123,6]
[366323712,1750187446891,-406.0,0.00023124,2]
[366323713,1750187446902,-348.76385865,0.00023141,8]
[366323714,1750187446913,-223.9,0.00023172,6]
[366323715,1750187446923,-500.0,0.00023214,2]
[366323716,1750187446933,-500.0,0.00023214,2]
[366323717,1750187446943,-500.0,0.00023214,2]
[366323718,1750187446953,-500.0,0.00023217,2]
[366323719,1750187446965,-191.62383554,0.00023218,2]
[366323720,1750187446976,-460.0,0.00023232,6]
[366323721,1750187446985,-1187.39,0.00023232,6]
[366323722,1750187446996,-1108.9,0.00023232,6]
[366323723,1750187447006,-559.9,0.00023232,6]
[366323724,1750187447017,-773.61,0.00023232,6]
[366323725,1750187447027,-964.52,0.00023232,6]
[366323726,1750187447037,-522.41,0.00023232,6]
[366323727,1750187447047,-495.83085434,0.00023232,6]
[366323728,1750187447057,-1187.46,0.00023232,6]
[366323729,1750187447068,-460.0,0.00023232,6]
[366323730,1750187447079,-460.0,0.00023232,6]
[366323731,1750187447089,-460.0,0.00023232,6]
[366323732,1750187447099,-768.08,0.00023232,6]
[366323733,1750187447110,-1166.0,0.00023232,6]
[366323734,1750187447120,-460.0,0.00023232,6]
[366323735,1750187447130,-527.07,0.00023232,6]
[366323736,1750187447140,-504.37,0.00023232,6]
[366323737,1750187447150,-460.0,0.00023232,6]
[366323738,1750187447162,-460.0,0.00023232,6]
[366323739,1750187447176,-515.05,0.00023232,6]
[366323740,1750187447185,-491.62,0.00023232,6]
[366323741,1750187447195,-2040.38,0.00023232,6]
[366323742,1750187447207,-460.0,0.00023232,6]
[366323743,1750187447218,-460.0,0.00023232,6]
[366323744,1750187447229,-1128.58,0.00023232,6]
[366323745,1750187447240,-689.88,0.00023232,6]
[366323746,1750187447250,-460.0,0.00023232,6]
[366323747,1750187447259,-462.05,0.00023232,6]
[366323748,1750187447269,-500.0,0.00023246,2]
[366323749,1750187447280,-500.0,0.00023309,2]
[366323750,1750187447290,-223.9,0.00023313,6]
[366323751,1750187447299,-348.76385865,0.00023314,9]
[366323752,1750187447309,-1500.0,0.00023331,2]
[366323753,1750187447319,-500.0,0.00023337,2]
[366323754,1750187447331,-460.0,0.00023342,6]
[366323755,1750187447341,-1187.39,0.00023342,6]
[366323756,1750187447351,-1108.9,0.00023342,6]
[366323757,1750187447361,-559.9,0.00023342,6]
[366323758,1750187447371,-773.61,0.00023342,6]
[366323759,1750187447381,-964.52,0.00023342,6]
[366323760,1750187447391,-522.41,0.00023342,6]
[366323761,1750187447401,-1187.46,0.00023342,6]
[366323762,1750187447411,-460.0,0.00023342,6]
[366323763,1750187447421,-460.0,0.00023342,6]
[366323764,1750187447431,-460.0,0.00023342,6]
[366323765,1750187447440,-768.08,0.00023342,6]
[366323766,1750187447450,-1166.0,0.00023342,6]
[366323767,1750187447650,-460.0,0.00023342,6]
[366323768,1750187447661,-527.07,0.00023342,6]
[366323769,1750187447670,-504.37,0.00023342,6]
[366323770,1750187447680,-460.0,0.00023342,6]
[366323771,1750187447690,-460.0,0.00023342,6]
[366323772,1750187447700,-515.05,0.00023342,6]
[366323773,1750187447710,-491.62,0.00023342,6]
[366323774,1750187447719,-2040.38,0.00023342,6]
[366323775,1750187447728,-460.0,0.00023342,6]
[366323776,1750187447737,-460.0,0.00023342,6]
[366323777,1750187447747,-1128.58,0.00023342,6]
[366323778,1750187447756,-689.88,0.00023342,6]
[366323779,1750187447766,-530.72,0.00023342,6]
[366323780,1750187447775,-462.05,0.00023342,6]
[366323781,1750187447785,-151.0,0.0002335,7]
[366323782,1750187447794,-160.0,0.00023356,2]
[366323783,1750187447804,-500.0,0.000234,2]
[366323784,1750187447814,-339.53770641,0.00023452,6]
[366323785,1750187447824,-1187.39,0.00023452,6]
[366323786,1750187447833,-1108.9,0.00023452,6]
[366323787,1750187447843,-559.9,0.00023452,6]
[366323788,1750187447852,-773.61,0.00023452,6]
[366323789,1750187447861,-964.52,0.00023452,6]
[366323790,1750187447871,-522.41,0.00023452,6]
[366323791,1750187447880,-1187.46,0.00023452,6]
[366323792,1750187447889,-460.0,0.00023452,6]
[366323793,1750187447898,-460.0,0.00023452,6]
[366323794,1750187447908,-266.8487205,0.00023452,6]
[366323795,1750187447917,-768.08,0.00023452,6]
[366323796,1750187447926,-1166.0,0.00023452,6]
[366323797,1750187447936,-202.19,0.00023452,6]
[366323798,1750187447945,-527.07,0.00023452,6]
[366323799,1750187447956,-504.37,0.00023452,6]
[366323800,1750187447965,-460.0,0.00023452,6]
[366323801,1750187447975,-460.0,0.00023452,6]
[366323802,1750187447985,-515.05,0.00023452,6]
[366323803,1750187447995,-491.62,0.00023452,6]
[366323804,1750187448005,-2040.38,0.00023452,6]
[366323805,1750187448014,-460.0,0.00023452,6]
[366323806,1750187448024,-204.6,0.00023452,6]
[366323807,1750187448034,-1128.58,0.00023452,6]
[366323808,1750187448044,-689.88,0.00023452,6]
[366323809,1750187448053,-462.05,0.00023452,6]
[366323810,1750187448063,-156.851535,0.00023452,2]
[366323811,1750187448072,-223.9,0.00023453,6]
[366323812,1750187448082,-500.0,0.00023461,2]
[366323813,1750187448092,-500.0,0.00023462,2]
[366323814,1750187448101,-420.0,0.00023469,2]
[366323815,1750187448111,-215.0738,0.00023486,2]
[366323816,1750187448121,-348.76385865,0.00023486,9]
[366323817,1750187448131,-168.0,0.00023489,2]
[366323818,1750187448141,-1187.39,0.00023561,6]
[366323819,1750187448151,-1108.9,0.00023561,6]
[366323820,1750187448162,-559.9,0.00023561,6]
[366323821,1750187448174,-773.61,0.00023561,6]
[366323822,1750187448187,-964.52,0.00023561,6]
[366323823,1750187448196,-522.41,0.00023561,6]
[366323824,1750187448207,-1187.46,0.00023561,6]
[366323825,1750187448217,-460.0,0.00023561,6]
[366323826,1750187448227,-460.0,0.00023561,6]
[366323827,1750187448236,-768.08,0.00023561,6]
[366323828,1750187448246,-1166.0,0.00023561,6]
[366323829,1750187448256,-527.07,0.00023561,6]
[366323830,1750187448266,-504.37,0.00023561,6]
[366323831,1750187448276,-460.0,0.00023561,6]
[366323832,1750187448287,-460.0,0.00023561,6]
[366323833,1750187448297,-515.05,0.00023561,6]
[366323834,1750187448307,-491.62,0.00023561,6]
[366323835,1750187448318,-2040.38,0.00023561,6]
[366323836,1750187448328,-460.0,0.00023561,6]
[366323837,1750187448339,-1128.58,0.00023561,6]
[366323838,1750187448350,-689.88,0.00023561,6]
[366323839,1750187448360,-462.05,0.00023561,6]
[366323840,1750187448370,-500.0,0.00023565,2]
[366323841,1750187448379,-500.0,0.00023591,2]
[366323842,1750187448389,-223.9,0.00023594,6]
[366323843,1750187448398,-151.0,0.00023597,7]
[366323844,1750187448407,-500.0,0.00023599,2]
[366323845,1750187448417,-960.75,0.000236,7]
[366323846,1750187448426,-235.70188856,0.00023603,2]
[366323847,1750187448435,-500.0,0.00023605,2]
[366323848,1750187448445,-837.59613405,0.0002364,2]
[366323849,1750187448454,-1000.0,0.00023641,2]
[366323850,1750187448463,-1000.0,0.00023641,2]
[366323851,1750187448473,-1000.0,0.00023641,2]
[366323852,1750187448482,-1200.0,0.00023641,2]
[366323853,1750187448491,-1000.0,0.00023641,2]
[366323854,1750187448501,-1000.0,0.00023641,2]
[366323855,1750187448512,-1000.0,0.00023641,2]
[366323856,1750187448521,-287.0,0.00023652,2]
[366323857,1750187448531,-348.76385865,0.00023659,9]
[366323858,1750187448541,-1187.39,0.00023671,6]
[366323859,1750187448551,-1108.9,0.00023671,6]
[366323860,1750187448562,-559.9,0.00023671,6]
[366323861,1750187448571,-773.61,0.00023671,6]
[366323862,1750187448581,-964.52,0.00023671,6]
[366323863,1750187448590,-522.41,0.00023671,6]
[366323864,1750187448600,-1187.46,0.00023671,6]
[366323865,1750187448609,-460.0,0.00023671,6]
[366323866,1750187448620,-460.0,0.00023671,6]
[366323867,1750187448629,-768.08,0.00023671,6]
[366323868,1750187448639,-1166.0,0.00023671,6]
[366323869,1750187448649,-527.07,0.00023671,6]
[366323870,1750187448660,-504.37,0.00023671,6]
[366323871,1750187448669,-460.0,0.00023671,6]
[366323872,1750187448678,-460.0,0.00023671,6]
[366323873,1750187448688,-515.05,0.00023671,6]
[366323874,1750187448697,-491.62,0.00023671,6]
[366323875,1750187448707,-2040.38,0.00023671,6]
[366323876,1750187448716,-460.0,0.00023671,6]
[366323877,1750187448725,-1128.58,0.00023671,6]
[366323878,1750187448734,-689.88,0.00023671,6]
[366323879,1750187448743,-462.05,0.00023671,6]
[366323880,1750187448753,-168.0,0.00023672,2]
[366323881,1750187448763,-153.0,0.0002371,2]
[366323882,1750187448772,-153.0,0.0002371,2]
[366323883,1750187448781,-223.9,0.00023735,6]
[366323884,1750187448790,-1000.0,0.00023762,2]
[366323885,1750187448800,-1000.0,0.00023762,2]
[366323886,1750187448809,-1000.0,0.00023762,2]
[366323887,1750187448818,-1000.0,0.00023765,2]
[366323888,1750187448827,-2000.0,0.0002378,7]
[366323889,1750187448836,-2000.0,0.0002378,7]
[366323890,1750187448845,-2000.0,0.0002378,7]
[366323891,1750187448855,-2000.0,0.0002378,7]
[366323892,1750187448864,-2122.22143324,0.0002378,7]
[366323893,1750187448873,-1187.39,0.0002378,6]
[366323894,1750187448883,-1108.9,0.0002378,6]
[366323895,1750187448893,-559.9,0.0002378,6]
[366323896,1750187448902,-773.61,0.0002378,6]
[366323897,1750187448912,-964.52,0.0002378,6]
[366323898,1750187448921,-522.41,0.0002378,6]
[366323899,1750187448931,-1187.46,0.0002378,6]
[366323900,1750187448941,-460.0,0.0002378,6]
[366323901,1750187448951,-460.0,0.0002378,6]
[366323902,1750187448961,-768.08,0.0002378,6]
[366323903,1750187448971,-1166.0,0.0002378,6]
[366323904,1750187448980,-527.07,0.0002378,6]
[366323905,1750187448990,-504.37,0.0002378,6]
[366323906,1750187449000,-460.0,0.0002378,6]
[366323907,1750187449011,-334.63,0.0002378,6]
[366323908,1750187449020,-515.05,0.0002378,6]
[366323909,1750187449030,-491.62,0.0002378,6]
[366323910,1750187449039,-2040.38,0.0002378,6]
[366323911,1750187449049,-460.0,0.0002378,6]
[366323912,1750187449058,-1128.58,0.0002378,6]
[366323913,1750187449068,-689.88,0.0002378,6]
[366323914,1750187449077,-462.05,0.0002378,6]
[366323915,1750187449086,-500.0,0.00023782,2]
[366323916,1750187449097,-238.752,0.00023788,7]
[366323917,1750187449107,-1000.0,0.00023794,2]
[366323918,1750187449116,-160.0,0.000238,7]
[366323919,1750187449125,-348.76385865,0.00023831,10]
[366323920,1750187449135,-223.9,0.00023875,6]
[366323921,1750187449145,-1000.0,0.00023878,2]
[366323922,1750187449154,-1187.39,0.0002389,6]
[366323923,1750187449168,-1108.9,0.0002389,6]
[366323924,1750187449177,-559.9,0.0002389,6]
[366323925,1750187449186,-773.61,0.0002389,6]
[366323926,1750187449196,-964.52,0.0002389,6]
[366323927,1750187449207,-522.41,0.0002389,6]
[366323928,1750187449216,-1187.46,0.0002389,6]
[366323929,1750187449225,-384.9647779,0.0002389,6]
[366323930,1750187449234,-460.0,0.0002389,6]
[366323931,1750187449244,-768.08,0.0002389,6]
[366323932,1750187449254,-1166.0,0.0002389,6]
[366323933,1750187449263,-527.07,0.0002389,6]
[366323934,1750187449272,-504.37,0.0002389,6]
[366323935,1750187449282,-460.0,0.0002389,6]
[366323936,1750187449292,-515.05,0.0002389,6]
[366323937,1750187449301,-491.62,0.0002389,6]
[366323938,1750187449310,-2040.38,0.0002389,6]
[366323939,1750187449319,-460.0,0.0002389,6]
[366323940,1750187449330,-1128.58,0.0002389,6]
[366323941,1750187449339,-689.88,0.0002389,6]
[366323942,1750187449349,-462.05,0.0002389,6]
[366323943,1750187449360,-626.72312379,0.000239,2]
[366323944,1750187449370,-200.0,0.000239,3]
[366323945,1750187449379,-1084.74449099,0.00023948,2]
[366323946,1750187449389,-718.648217,0.00023949,3]
[366323947,1750187449398,-250.0,0.00023973,2]
[366323948,1750187449409,-76654.33646717,0.00024,2]
[366323949,1750187449418,-500.0,0.00024,2]
[366323950,1750187449427,-424.16,0.00024,2]
[366323951,1750187449437,-151.0,0.00024,7]
[366323952,1750187449448,-151.0,0.00024,7]
[366323953,1750187449458,-151.0,0.00024,7]
[366323954,1750187449468,-3231.9,0.00024,7]
[366323955,1750187449479,-3000.0,0.00024,2]
[366323956,1750187449489,-202.43673506,0.00024,2]
[366323957,1750187449499,-1187.39,0.00024,6]
[366323958,1750187449509,-1108.9,0.00024,6]
[366323959,1750187449520,-559.9,0.00024,6]
[366323960,1750187449529,-773.61,0.00024,6]
[366323961,1750187449539,-964.52,0.00024,6]
[366323962,1750187449549,-522.41,0.00024,6]
[366323963,1750187449558,-1187.46,0.00024,6]
[366323964,1750187449567,-460.0,0.00024,6]
[366323965,1750187449577,-768.08,0.00024,6]
[366323966,1750187449587,-158.63389404,0.00024,2]
[366323967,1750187449597,-229.94211981,0.00024,7]
[366323968,1750187449607,-1166.0,0.00024,6]
[366323969,1750187449617,-527.07,0.00024,6]
[366323970,1750187449627,-504.37,0.00024,6]
[366323971,1750187449637,-460.0,0.00024,6]
[366323972,1750187449646,-515.05,0.00024,6]
[366323973,1750187449656,-2040.38,0.00024,6]
[366323974,1750187449666,-491.62,0.00024,6]
[366323975,1750187449676,-460.0,0.00024,6]
[366323976,1750187449685,-1128.58,0.00024,6]
[366323977,1750187449697,-689.88,0.00024,6]
[366323978,1750187449709,-462.05,0.00024,6]
[366323979,1750187449720,-348.76385865,0.00024003,10]
[366323980,1750187449733,-3000.0,0.0002401,2]
[366323981,1750187449745,-223.9,0.00024016,7]
[366323982,1750187449760,-3000.0,0.0002402,2]
[366323983,1750187449771,-3000.0,0.0002403,2]
[366323984,1750187449782,-3000.0,0.0002404,2]
[366323985,1750187449792,-3000.0,0.0002405,2]
[366323986,1750187449802,-3000.0,0.0002406,2]
[366323987,1750187449812,-3000.0,0.0002407,2]
[366323988,1750187449822,-168.0,0.00024074,2]
[366323989,1750187449831,-3000.0,0.0002408,2]
[366323990,1750187449841,-235.70188856,0.00024088,2]
[366323991,1750187449850,-3000.0,0.0002409,2]
[366323992,1750187449860,-3000.0,0.000241,2]
[366323993,1750187449869,-1187.39,0.00024109,6]
[366323994,1750187449879,-1108.9,0.00024109,6]
[366323995,1750187449888,-559.9,0.00024109,6]
[366323996,1750187449898,-773.61,0.00024109,6]
[366323997,1750187449907,-964.52,0.00024109,6]
[366323998,1750187449917,-522.41,0.00024109,6]
[366323999,1750187449927,-1187.46,0.00024109,6]
[366324000,1750187449936,-460.0,0.00024109,6]
[366324001,1750187449945,-768.08,0.00024109,6]
[366324002,1750187449954,-1166.0,0.00024109,6]
[366324003,1750187449964,-527.07,0.00024109,6]
[366324004,1750187449973,-504.37,0.00024109,6]
[366324005,1750187449983,-259.75,0.00024109,6]
[366324006,1750187449993,-460.0,0.00024109,6]
[366324007,1750187450003,-460.0,0.00024109,6]
[366324008,1750187450013,-460.0,0.00024109,6]
[366324009,1750187450022,-515.05,0.00024109,6]
[366324010,1750187450032,-2040.38,0.00024109,6]
[366324011,1750187450041,-491.62,0.00024109,6]
[366324012,1750187450050,-385.2663243,0.00024109,6]
[366324013,1750187450060,-1128.58,0.00024109,6]
[366324014,1750187450069,-689.88,0.00024109,6]
[366324015,1750187450079,-462.05,0.00024109,6]
[366324016,1750187450089,-3000.0,0.0002411,2]
[366324017,1750187450098,-3000.0,0.0002412,2]
[366324018,1750187450107,-3000.0,0.0002413,2]
[366324019,1750187450116,-3000.0,0.0002414,2]
[366324020,1750187450126,-3000.0,0.0002415,2]
[366324021,1750187450135,-223.9,0.00024157,7]
[366324022,1750187450144,-206.0,0.0002416,2]
[366324023,1750187450154,-3000.0,0.0002416,2]
[366324024,1750187450165,-3000.0,0.0002417,2]
[366324025,1750187450174,-964.0,0.00024175,2]
[366324026,1750187450183,-2160.0,0.00024175,2]
[366324027,1750187450192,-348.76385865,0.00024176,10]
[366324028,1750187450203,-3000.0,0.0002418,2]
[366324029,1750187450212,-2816.68661021,0.00024185,2]
[366324030,1750187450222,-1747.0,0.00024187,3]
[366324031,1750187450231,-1747.0,0.00024187,3]
[366324032,1750187450241,-1747.0,0.00024187,3]
[366324033,1750187450251,-759.96256108,0.00024187,3]
[366324034,1750187450260,-153.0,0.00024187,3]
[366324035,1750187450269,-156.01367261,0.00024187,3]
[366324036,1750187450279,-317.0,0.00024187,3]
[366324037,1750187450288,-317.0,0.00024187,3]
[366324038,1750187450297,-317.0,0.00024187,3]
[366324039,1750187450306,-317.0,0.00024187,3]
[366324040,1750187450316,-317.0,0.00024187,3]
[366324041,1750187450325,-317.0,0.00024187,3]
[366324042,1750187450335,-317.0,0.00024187,3]
[366324043,1750187450344,-317.0,0.00024187,3]
[366324044,1750187450354,-317.0,0.00024187,3]
[366324045,1750187450363,-317.0,0.00024187,3]
[366324046,1750187450373,-317.0,0.00024187,3]
[366324047,1750187450382,-317.0,0.00024187,3]
[366324048,1750187450392,-317.0,0.00024187,3]
[366324049,1750187450401,-317.0,0.00024187,3]
[366324050,1750187450411,-317.0,0.00024187,3]
[366324051,1750187450420,-317.0,0.00024187,3]
[366324052,1750187450430,-317.0,0.00024187,3]
[366324053,1750187450439,-317.0,0.00024187,3]
[366324054,1750187450448,-317.0,0.00024187,3]
[366324055,1750187450459,-317.0,0.00024187,3]
[366324056,1750187450468,-168.93924067,0.00024187,3]
[366324057,1750187450477,-500.0,0.00024189,2]
[366324058,1750187450487,-1500.0,0.00024189,2]
[366324059,1750187450496,-1500.0,0.00024189,2]
[366324060,1750187450506,-1800.0,0.00024189,2]
[366324061,1750187450515,-1504.27480815,0.00024189,2]
[366324062,1750187450525,-1004.00044034,0.00024189,2]
[366324063,1750187450534,-1500.0,0.00024189,2]
[366324064,1750187450544,-800.0,0.00024189,2]
[366324065,1750187450553,-3000.0,0.0002419,2]
[366324066,1750187450562,-800.0,0.0002419,2]
[366324067,1750187450572,-835.82910252,0.000242,3]
[366324068,1750187450581,-3000.0,0.000242,2]
[366324069,1750187450591,-850.0,0.000242,5]
[366324070,1750187450600,-229.94211981,0.000242,3]
[366324071,1750187450610,-160.0,0.000242,3]
[366324072,1750187450619,-3000.0,0.0002421,2]
[366324073,1750187450629,-183.488416,0.00024219,7]
[366324074,1750187450638,-183.488416,0.00024219,7]
[366324075,1750187450647,-1187.39,0.00024219,6]
[366324076,1750187450656,-1108.9,0.00024219,6]
[366324077,1750187450666,-559.9,0.00024219,6]
[366324078,1750187450675,-773.61,0.00024219,6]
[366324079,1750187450686,-964.52,0.00024219,6]
[366324080,1750187450695,-522.41,0.00024219,6]
[366324081,1750187450704,-1187.46,0.00024219,6]
[366324082,1750187450832,-325.31,0.00024219,6]
[366324083,1750187450846,-768.08,0.00024219,6]
[366324084,1750187450856,-1166.0,0.00024219,6]
[366324085,1750187450866,-527.07,0.00024219,6]
[366324086,1750187450875,-504.37,0.00024219,6]
[366324087,1750187450885,-515.05,0.00024219,6]
[366324088,1750187450894,-2040.38,0.00024219,6]
[366324089,1750187450904,-491.62,0.00024219,6]
[366324090,1750187450913,-1128.58,0.00024219,6]
[366324091,1750187450922,-689.88,0.00024219,6]
[366324092,1750187450932,-462.05,0.00024219,6]
[366324093,1750187450941,-3000.0,0.0002422,2]
[366324094,1750187450952,-3000.0,0.0002423,2]
[366324095,1750187450962,-800.0,0.00024239,2]
[366324096,1750187450971,-3000.0,0.0002424,2]
[366324097,1750187450981,-3000.0,0.0002425,2]
[366324098,1750187450991,-168.0,0.00024255,2]
[366324099,1750187451001,-3000.0,0.0002426,2]
[366324100,1750187451010,-791.68,0.00024267,2]
[366324101,1750187451020,-3000.0,0.0002427,2]
[366324102,1750187451029,-371.0,0.00024278,2]
[366324103,1750187451039,-200.0,0.0002428,10]
[366324104,1750187451049,-3000.0,0.0002428,2]
[366324105,1750187451058,-3000.0,0.0002429,2]
[366324106,1750187451068,-223.9,0.00024297,7]
[366324107,1750187451078,-800.0,0.00024299,2]
[366324108,1750187451087,-59298.84700146,0.000243,2]
[366324109,1750187451097,-1636.29322531,0.000243,7]
[366324110,1750187451202,-424.62582665,0.000242,3]
[366324111,1750187451213,-2345.62417336,0.000243,7]
[366324112,1750187451225,-1070.24555412,0.000243,7]
[366324113,1750187451254,-602.55,0.00021917,2]
[366324114,1750187451264,-31123.98704721,0.000243,7]
[366324115,1750187451273,-160.0,0.000243,7]
[366324116,1750187451283,-3000.0,0.000243,2]
[366324117,1750187451292,-699.0,0.000243,2]
[366324118,1750187451302,-3000.0,0.0002431,2]
[366324119,1750187451312,-1500.0,0.0002431,2]
[366324120,1750187451321,-1500.0,0.0002431,2]
[366324121,1750187451331,-1003.24369858,0.0002431,2]
[366324122,1750187451341,-500.0,0.00024313,2]
[366324123,1750187451350,-3000.0,0.0002432,2]
[366324124,1750187451360,-1187.39,0.00024328,6]
[366324125,1750187451369,-1108.9,0.00024328,6]
[366324126,1750187451379,-559.9,0.00024328,6]
[366324127,1750187451389,-773.61,0.00024328,6]
[366324128,1750187451398,-964.52,0.00024328,6]
[366324129,1750187451408,-522.41,0.00024328,6]
[366324130,1750187451417,-1187.46,0.00024328,6]
[366324131,1750187451428,-768.08,0.00024328,6]
[366324132,1750187451437,-1166.0,0.00024328,6]
[366324133,1750187451446,-527.07,0.00024328,6]
[366324134,1750187451456,-504.37,0.00024328,6]
[366324135,1750187451465,-515.05,0.00024328,6]
[366324136,1750187451475,-2040.38,0.00024328,6]
[366324137,1750187451485,-491.62,0.00024328,6]
[366324138,1750187451494,-1128.58,0.00024328,6]
[366324139,1750187451503,-689.88,0.00024328,6]
[366324140,1750187451512,-462.05,0.00024328,6]
[366324141,1750187451521,-3000.0,0.0002433,2]
[366324142,1750187451530,-800.0,0.00024337,2]
[366324143,1750187451539,-3000.0,0.0002434,2]
[366324144,1750187451549,-1500.0,0.00024342,2]
[366324145,1750187451558,-348.76385865,0.00024348,11]
[366324146,1750187451568,-3000.0,0.0002435,2]
[366324147,1750187451577,-800.0,0.00024351,2]
[366324148,1750187451587,-3000.0,0.0002436,2]
[366324149,1750187451596,-800.0,0.00024368,2]
[366324150,1750187451605,-3000.0,0.0002437,2]
[366324151,1750187451615,-3000.0,0.0002438,2]
[366324152,1750187451624,-3000.0,0.0002439,2]
[366324153,1750187451634,-371.0,0.00024393,2]
[366324154,1750187451643,-500.0,0.00024396,2]
[366324155,1750187451653,-3000.0,0.000244,2]
[366324156,1750187451662,-1000.0,0.000244,2]
[366324157,1750187451671,-3000.0,0.0002441,2]
[366324158,1750187451681,-1202.91348092,0.0002442,2]
[366324159,1750187451693,-1797.08651908,0.0002442,2]
[366324160,1750187451702,-206.0,0.0002443,2]
[366324161,1750187451712,-3000.0,0.0002443,2]
[366324162,1750187451722,-160.0,0.00024438,3]
[366324163,1750187451732,-223.9,0.00024438,7]
[366324164,1750187451742,-1187.55,0.00024438,6]
[366324165,1750187451752,-1109.09,0.00024438,6]
[366324166,1750187451763,-560.12,0.00024438,6]
[366324167,1750187451772,-773.72,0.00024438,6]
[366324168,1750187451782,-964.6,0.00024438,6]
[366324169,1750187451791,-522.55691532,0.00024438,6]
[366324170,1750187451801,-1187.54328144,0.00024438,6]
[366324171,1750187451811,-768.13937155,0.00024438,6]
[366324172,1750187451821,-1166.06948697,0.00024438,6]
[366324173,1750187451830,-527.24861856,0.00024438,6]
[366324174,1750187451839,-504.55,0.00024438,6]
[366324175,1750187451848,-515.28,0.00024438,6]
[366324176,1750187451858,-2040.43840868,0.00024438,6]
[366324177,1750187451867,-491.76036688,0.00024438,6]
[366324178,1750187451877,-1128.60354554,0.00024438,6]
[366324179,1750187451887,-689.99596116,0.00024438,6]
[366324180,1750187451896,-462.23493095,0.00024438,6]
[366324181,1750187451906,-4261.70057,0.0002444,2]
[366324182,1750187451915,-371.0,0.00024441,2]
[366324183,1750187451924,-2125.97,0.00024465,2]
[366324184,1750187451934,-2125.97,0.00024493,2]
[366324185,1750187451944,-150.0,0.000245,2]
[366324186,1750187451952,-5000.0,0.000245,30]
[366324187,1750187451963,-834.72399643,0.000245,3]
[366324188,1750187451972,-6162.39951576,0.0002451,7]
[366324189,1750187451982,-2125.97,0.0002452,2]
[366324190,1750187451991,-348.76385865,0.00024521,11]
[366324191,1750187452001,-2125.97,0.00024547,2]
[366324192,1750187452011,-371.0,0.00024559,2]
[366324193,1750187452020,-151.0,0.00024565,7]
[366324194,1750187452029,-151.0,0.00024565,7]